fUSD/lending_fUSD_20250226
["ID","MTS","AMOUNT","RATE_DAILY","PERIOD"]
[354619778,1740595954687,-1101.53603915,0.00039788,4]
[354619779,1740595954697,-323395.76826437,0.000398,7]
[354619780,1740595954708,-151.0,0.000398,14]
[354619781,1740595954718,-239.211722,0.000398,14]
[354619782,1740595954729,-161.064414,0.000398,14]
[354619783,1740595954739,-161.064414,0.000398,14]
[354619784,1740595954749,-151.0,0.000398,14]
[354619785,1740595954760,-151.0,0.000398,14]
[354619786,1740595954769,-151.0,0.000398,7]
[354619787,1740595954779,-151.0,0.000398,14]
[354619788,1740595954789,-151.0,0.000398,14]
[354619789,1740595954799,-151.0,0.000398,14]
[354619790,1740595954810,-166.367075,0.000398,14]
[354619791,1740595954819,-535.371584,0.000398,14]
[354619792,1740595954829,-535.371584,0.000398,14]
[354619793,1740595954840,-151.0,0.000398,14]
[354619794,1740595954849,-204.24472,0.000398,14]
[354619795,1740595954859,-204.24472,0.000398,14]
[354619796,1740595954869,-152.401307,0.000398,14]
[354619797,1740595954879,-267.483672,0.000398,14]
[354619798,1740595954893,-151.638453,0.000398,14]
[354619799,1740595954903,-2562.418004,0.000398,14]
[354619800,1740595954912,-2562.418004,0.000398,14]
[354619801,1740595954922,-151.0,0.000398,14]
[354619802,1740595954932,-151.0,0.000398,14]
[354619803,1740595954941,-151.0,0.000398,14]
[354619804,1740595954952,-151.0,0.000398,14]
[354619805,1740595954962,-325.751933,0.000398,14]
[354619806,1740595954975,-325.751933,0.000398,14]
[354619807,1740595954985,-153.412818,0.000398,14]
[354619808,1740595954996,-1000.0,0.0003997,2]
[354619809,1740595955008,-500.0,0.0003997,2]
[354619810,1740595955018,-2142.0,0.0004,14]
[354619811,1740595955030,-1232.0,0.0004,14]
[354619812,1740595955039,-375.39655251,0.0004,2]
[354619813,1740595955048,-210.39729081,0.0004,2]
[354619814,1740595955058,-5100.0,0.0004,21]
[354619815,1740595955068,-4303.97916708,0.0004,120]
[354619816,1740595955077,-5873.57,0.0004,120]
[354619817,1740595955088,-166.31,0.0004,120]
[354619818,1740595955097,-461.85,0.0004,120]
[354619819,1740595955107,-1338.92,0.0004,120]
[354619820,1740595955116,-157.23897,0.0004,14]
[354619821,1740595955126,-672.636069,0.0004,14]
[354619822,1740595955138,-1501.590989,0.0004,14]
[354619823,1740595955148,-676.71,0.0004,14]
[354619824,1740595955158,-870.39,0.0004,14]
[354619825,1740595955169,-1069.27,0.0004,14]
[354619826,1740595955179,-814.89,0.0004,14]
[354619827,1740595955189,-1090.2,0.0004,14]
[354619828,1740595955200,-151.0,0.0004,14]
[354619829,1740595955211,-170.70866935,0.0004,14]
[354619830,1740595955220,-500.0,0.0004,14]
[354619831,1740595955231,-1150.39,0.0004,14]
[354619832,1740595955240,-500.0,0.0004,14]
[354619833,1740595955250,-701.36,0.0004,14]
[354619834,1740595955429,-841.82,0.0004,14]
[354619835,1740595955468,-500.0,0.0004,14]
[354619836,1740595955478,-670.19,0.0004,14]
[354619837,1740595955488,-151.0,0.0004,14]
[354619838,1740595955499,-300.0,0.0004,14]
[354619839,1740595955509,-195.65488,0.0004,14]
[354619840,1740595955519,-1844.05,0.0004,14]
[354619841,1740595955529,-335.37450315,0.0004,14]
[354619842,1740595955539,-747.92,0.0004,14]
[354619843,1740595955549,-835.83,0.0004,14]
[354619844,1740595955559,-738.6,0.0004,14]
[354619845,1740595955569,-1533.87,0.0004,14]
[354619846,1740595955579,-1414.25,0.0004,14]
[354619847,1740595955589,-865.08,0.0004,14]
[354619848,1740595955599,-633.98,0.0004,14]
[354619849,1740595955609,-600.33,0.0004,14]
[354619850,1740595955619,-580.36,0.0004,14]
[354619851,1740595955628,-742.35,0.0004,14]
[354619852,1740595955641,-151.0,0.0004,14]
[354619853,1740595955651,-732.49,0.0004,14]
[354619854,1740595955662,-527.1,0.0004,14]
[354619855,1740595955672,-500.0,0.0004,14]
[354619856,1740595955682,-935.03,0.0004,14]
[354619857,1740595955692,-543.41,0.0004,14]
[354619858,1740595955702,-151.0,0.0004,14]
[354619859,1740595955712,-581.31,0.0004,14]
[354619860,1740595955722,-689.42,0.0004,14]
[354619861,1740595955732,-689.49,0.0004,14]
[354619862,1740595955741,-151.0,0.0004,14]
[354619863,1740595955751,-571.34,0.0004,14]
[354619864,1740595955761,-696.87,0.0004,14]
[354619865,1740595955771,-1290.39,0.0004,14]
[354619866,1740595955781,-546.44,0.0004,14]
[354619867,1740595955791,-289.84493434,0.0004,14]
[354619868,1740595955801,-594.86,0.0004,14]
[354619869,1740595955810,-635.18,0.0004,14]
[354619870,1740595955820,-858.4,0.0004,14]
[354619871,1740595955830,-617.43,0.0004,14]
[354619872,1740595955839,-500.0,0.0004,14]
[354619873,1740595955849,-665.21,0.0004,14]
[354619874,1740595955859,-500.0,0.0004,14]
[354619875,1740595955869,-1850.02,0.0004,14]
[354619876,1740595955880,-1161.63,0.0004,14]
[354619877,1740595955892,-1036.04,0.0004,14]
[354619878,1740595955901,-2240.29,0.0004,14]
[354619879,1740595955912,-151.0,0.0004,14]
[354619880,1740595955923,-151.0,0.0004,14]
[354619881,1740595955933,-151.0,0.0004,14]
[354619882,1740595955943,-151.0,0.0004,14]
[354619883,1740595955954,-151.0,0.0004,14]
[354619884,1740595955965,-151.0,0.0004,14]
[354619885,1740595955975,-151.0,0.0004,14]
[354619886,1740595955986,-151.0,0.0004,14]
[354619887,1740595955995,-608.93,0.0004,14]
[354619888,1740595956006,-500.0,0.0004,14]
[354619889,1740595956018,-2310.8,0.0004,14]
[354619890,1740595956028,-500.0,0.0004,14]
[354619891,1740595956038,-161.064414,0.0004,14]
[354619892,1740595956048,-161.064414,0.0004,14]
[354619893,1740595956058,-161.064414,0.0004,14]
[354619894,1740595956067,-161.064414,0.0004,14]
[354619895,1740595956077,-161.064414,0.0004,14]
[354619896,1740595956087,-161.064414,0.0004,14]
[354619897,1740595956098,-161.064414,0.0004,14]
[354619898,1740595956108,-161.064414,0.0004,14]
[354619899,1740595956118,-161.064414,0.0004,14]
[354619900,1740595956128,-161.064414,0.0004,14]
[354619901,1740595956141,-161.064414,0.0004,14]
[354619902,1740595956151,-1018.81,0.0004,14]
[354619903,1740595956160,-161.064414,0.0004,14]
[354619904,1740595956170,-161.064414,0.0004,14]
[354619905,1740595956180,-161.064414,0.0004,14]
[354619906,1740595956190,-161.064414,0.0004,14]
[354619907,1740595956200,-161.064407,0.0004,14]
[354619908,1740595956211,-500.0,0.0004,14]
[354619909,1740595956221,-871.69,0.0004,14]
[354619910,1740595956231,-151.835246,0.0004,14]
[354619911,1740595956241,-151.0,0.0004,14]
[354619912,1740595956251,-151.0,0.0004,14]
[354619913,1740595956260,-500.0,0.0004,14]
[354619914,1740595956271,-1006.27,0.0004,14]
[354619915,1740595956281,-151.0,0.0004,7]
[354619916,1740595956291,-151.0,0.0004,7]
[354619917,1740595956301,-595.91,0.0004,14]
[354619918,1740595956311,-1116.49,0.0004,14]
[354619919,1740595956322,-151.0,0.0004,7]
[354619920,1740595956332,-151.0,0.0004,7]
[354619921,1740595956342,-641.45,0.0004,14]
[354619922,1740595956352,-772.83,0.0004,14]
[354619923,1740595956363,-1308.99,0.0004,14]
[354619924,1740595956373,-872.15,0.0004,14]
[354619925,1740595956383,-935.7,0.0004,14]
[354619926,1740595956396,-391.68904062,0.0004,14]
[354619927,1740595956405,-151.0,0.0004,14]
[354619928,1740595956415,-253.0,0.0004,14]
[354619929,1740595956426,-151.0,0.0004,14]
[354619930,1740595956436,-151.0,0.0004,14]
[354619931,1740595956446,-151.0,0.0004,14]
[354619932,1740595956456,-231.031672,0.0004,14]
[354619933,1740595956466,-649.25,0.0004,14]
[354619934,1740595956476,-1082.33,0.0004,14]
[354619935,1740595956486,-500.0,0.0004,14]
[354619936,1740595956497,-513.39,0.0004,14]
[354619937,1740595956506,-1176.81,0.0004,14]
[354619938,1740595956516,-1686.11,0.0004,14]
[354619939,1740595956527,-547.24,0.0004,14]
[354619940,1740595956537,-538.09,0.0004,14]
[354619941,1740595956547,-151.0,0.0004,14]
[354619942,1740595956556,-151.0,0.0004,14]
[354619943,1740595956567,-151.0,0.0004,14]
[354619944,1740595956576,-151.0,0.0004,14]
[354619945,1740595956587,-811.61,0.0004,14]
[354619946,1740595956597,-1804.38,0.0004,14]
[354619947,1740595956606,-969.08,0.0004,14]
[354619948,1740595956616,-2234.9,0.0004,14]
[354619949,1740595956626,-877.13,0.0004,14]
[354619950,1740595956639,-582.64,0.0004,14]
[354619951,1740595956648,-298.56167226,0.0004,14]
[354619952,1740595956658,-500.0,0.0004,14]
[354619953,1740595956668,-500.0,0.0004,14]
[354619954,1740595956678,-1855.35,0.0004,14]
[354619955,1740595956688,-1019.59,0.0004,14]
[354619956,1740595956698,-2120.11,0.0004,14]
[354619957,1740595956708,-1021.29,0.0004,14]
[354619958,1740595956717,-1613.94,0.0004,14]
[354619959,1740595956727,-572.27,0.0004,14]
[354619960,1740595956736,-982.48,0.0004,14]
[354619961,1740595956746,-1105.78,0.0004,14]
[354619962,1740595956757,-2258.29,0.0004,14]
[354619963,1740595956767,-500.0,0.0004,14]
[354619964,1740595956777,-1496.14,0.0004,14]
[354619965,1740595956787,-782.62,0.0004,14]
[354619966,1740595956797,-1313.98,0.0004,14]
[354619967,1740595956807,-633.15,0.0004,14]
[354619968,1740595956818,-1614.67,0.0004,14]
[354619969,1740595956828,-777.94,0.0004,14]
[354619970,1740595956839,-1119.74,0.0004,14]
[354619971,1740595956849,-630.05,0.0004,14]
[354619972,1740595956859,-500.0,0.0004,14]
[354619973,1740595956869,-1550.01,0.0004,14]
[354619974,1740595956879,-166.367075,0.0004,14]
[354619975,1740595956892,-166.367075,0.0004,14]
[354619976,1740595956902,-898.54,0.0004,14]
[354619977,1740595956911,-166.367075,0.0004,14]
[354619978,1740595956922,-986.29,0.0004,14]
[354619979,1740595956931,-666.5,0.0004,14]
[354619980,1740595956941,-166.367075,0.0004,14]
[354619981,1740595956951,-166.367075,0.0004,14]
[354619982,1740595956961,-166.367075,0.0004,14]
[354619983,1740595956974,-166.367075,0.0004,14]
[354619984,1740595956984,-166.367075,0.0004,14]
[354619985,1740595956994,-166.367075,0.0004,14]
[354619986,1740595957004,-1800.45,0.0004,14]
[354619987,1740595957017,-166.367075,0.0004,14]
[354619988,1740595957028,-13571.67472895,0.0004,30]
[354619989,1740595957038,-166.367081,0.0004,14]
[354619990,1740595957048,-13571.67472895,0.0004,30]
[354619991,1740595957058,-13571.67472895,0.0004,30]
[354619992,1740595957069,-1038.19,0.0004,14]
[354619993,1740595957079,-13571.67472895,0.0004,30]
[354619994,1740595957089,-722.35,0.0004,14]
[354619995,1740595957100,-777.79,0.0004,14]
[354619996,1740595957111,-583.31,0.0004,14]
[354619997,1740595957121,-1016.47,0.0004,14]
[354619998,1740595957130,-746.65,0.0004,14]
[354619999,1740595957143,-529.67,0.0004,14]
[354620000,1740595957152,-386.85710441,0.0004,14]
[354620001,1740595957162,-806.05,0.0004,14]
[354620002,1740595957172,-886.7,0.0004,14]
[354620003,1740595957182,-820.28,0.0004,14]
[354620004,1740595957192,-1501.14,0.0004,14]
[354620005,1740595957202,-535.371584,0.0004,14]
[354620006,1740595957212,-535.371584,0.0004,14]
[354620007,1740595957221,-425.41581806,0.0004,14]
[354620008,1740595957231,-921.34,0.0004,14]
[354620009,1740595957242,-535.371584,0.0004,14]
[354620010,1740595957252,-535.371584,0.0004,14]
[354620011,1740595957263,-535.371584,0.0004,14]
[354620012,1740595957273,-535.371584,0.0004,14]
[354620013,1740595957282,-699.59,0.0004,14]
[354620014,1740595957291,-535.371584,0.0004,14]
[354620015,1740595957301,-535.371584,0.0004,14]
[354620016,1740595957311,-1003.76,0.0004,14]
[354620017,1740595957321,-500.44404578,0.0004,14]
[354620018,1740595957332,-535.371584,0.0004,14]
[354620019,1740595957342,-1495.63,0.0004,14]
[354620020,1740595957352,-535.371584,0.0004,14]
[354620021,1740595957362,-535.371584,0.0004,14]
[354620022,1740595957372,-535.371584,0.0004,14]
[354620023,1740595957383,-535.371584,0.0004,14]
[354620024,1740595957394,-535.371584,0.0004,14]
[354620025,1740595957404,-535.371584,0.0004,14]
[354620026,1740595957413,-834.44,0.0004,14]
[354620027,1740595957423,-535.371586,0.0004,14]
[354620028,1740595957433,-831.3,0.0004,14]
[354620029,1740595957443,-675.74,0.0004,14]
[354620030,1740595957453,-917.03,0.0004,14]
[354620031,1740595957463,-551.68,0.0004,14]
[354620032,1740595957472,-681.62,0.0004,14]
[354620033,1740595957482,-1958.47,0.0004,14]
[354620034,1740595957492,-1067.6,0.0004,14]
[354620035,1740595957503,-500.0,0.0004,14]
[354620036,1740595957515,-636.63,0.0004,14]
[354620037,1740595957526,-1007.51,0.0004,14]
[354620038,1740595957536,-826.67,0.0004,14]
[354620039,1740595957547,-532.65,0.0004,14]
[354620040,1740595957557,-1255.98,0.0004,14]
[354620041,1740595957567,-500.0,0.0004,14]
[354620042,1740595957577,-1084.65,0.0004,14]
[354620043,1740595957587,-510.04,0.0004,14]
[354620044,1740595957596,-153.097793,0.0004,14]
[354620045,1740595957606,-1101.48,0.0004,14]
[354620046,1740595957616,-634.72,0.0004,14]
[354620047,1740595957626,-204.24472,0.0004,14]
[354620048,1740595957635,-204.24472,0.0004,14]
[354620049,1740595957647,-842.79,0.0004,14]
[354620050,1740595957657,-204.24472,0.0004,14]
[354620051,1740595957667,-204.24472,0.0004,14]
[354620052,1740595957677,-204.24472,0.0004,14]
[354620053,1740595957687,-204.24472,0.0004,14]
[354620054,1740595957698,-204.24472,0.0004,14]
[354620055,1740595957708,-204.24472,0.0004,14]
[354620056,1740595957718,-861.46,0.0004,14]
[354620057,1740595957728,-204.24472,0.0004,14]
[354620058,1740595957738,-204.24472,0.0004,14]
[354620059,1740595957749,-204.24472,0.0004,14]
[354620060,1740595957759,-204.24472,0.0004,14]
[354620061,1740595957769,-204.24472,0.0004,14]
[354620062,1740595957779,-500.0,0.0004,14]
[354620063,1740595957789,-204.24472,0.0004,14]
[354620064,1740595957799,-765.4,0.0004,14]
[354620065,1740595957810,-204.24472,0.0004,14]
[354620066,1740595957820,-204.24472,0.0004,14]
[354620067,1740595957830,-604.9,0.0004,14]
[354620068,1740595957840,-1116.67,0.0004,14]
[354620069,1740595957850,-500.0,0.0004,14]
[354620070,1740595957860,-1441.7,0.0004,14]
[354620071,1740595957870,-754.28,0.0004,14]
[354620072,1740595957880,-929.23,0.0004,14]
[354620073,1740595957892,-1403.66,0.0004,14]
[354620074,1740595957902,-718.11,0.0004,14]
[354620075,1740595957912,-1217.5,0.0004,14]
[354620076,1740595957922,-1107.15,0.0004,14]
[354620077,1740595957932,-1834.12,0.0004,14]
[354620078,1740595957942,-902.19,0.0004,14]
[354620079,1740595957952,-561.55,0.0004,14]
[354620080,1740595957961,-565.94,0.0004,14]
[354620081,1740595957972,-1996.52,0.0004,14]
[354620082,1740595957982,-500.0,0.0004,14]
[354620083,1740595957992,-563.43,0.0004,14]
[354620084,1740595958076,-1467.19,0.0004,14]
[354620085,1740595958086,-1321.18,0.0004,14]
[354620086,1740595958097,-1902.42,0.0004,14]
[354620087,1740595958107,-1140.97,0.0004,14]
[354620088,1740595958117,-528.46,0.0004,14]
[354620089,1740595958127,-500.0,0.0004,14]
[354620090,1740595958136,-651.71,0.0004,14]
[354620091,1740595958148,-1073.87,0.0004,14]
[354620092,1740595958158,-1235.9,0.0004,14]
[354620093,1740595958168,-2562.418004,0.0004,14]
[354620094,1740595958178,-2562.418004,0.0004,14]
[354620095,1740595958188,-2562.418004,0.0004,14]
[354620096,1740595958199,-583.0,0.0004,14]
[354620097,1740595958209,-2562.418004,0.0004,14]
[354620098,1740595958218,-2562.418004,0.0004,14]
[354620099,1740595958228,-2562.418004,0.0004,14]
[354620100,1740595958237,-2562.418004,0.0004,14]
[354620101,1740595958246,-642.59,0.0004,14]
[354620102,1740595958256,-2562.418004,0.0004,14]
[354620103,1740595958265,-2562.418004,0.0004,14]
[354620104,1740595958275,-2562.418004,0.0004,14]
[354620105,1740595958284,-1162.07,0.0004,14]
[354620106,1740595958294,-2562.418004,0.0004,14]
[354620107,1740595958303,-2562.418004,0.0004,14]
[354620108,1740595958313,-1175.03,0.0004,14]
[354620109,1740595958323,-2562.418004,0.0004,14]
[354620110,1740595958332,-2562.418004,0.0004,14]
[354620111,1740595958342,-500.0,0.0004,14]
[354620112,1740595958352,-2562.418004,0.0004,14]
[354620113,1740595958362,-2562.417997,0.0004,14]
[354620114,1740595958372,-1123.12,0.0004,14]
[354620115,1740595958382,-1360.38,0.0004,14]
[354620116,1740595958393,-990.04,0.0004,14]
[354620117,1740595958403,-758.81,0.0004,14]
[354620118,1740595958412,-500.0,0.0004,14]
[354620119,1740595958422,-151.0,0.0004,14]
[354620120,1740595958431,-151.0,0.0004,14]
[354620121,1740595958441,-151.0,0.0004,14]
[354620122,1740595958451,-151.0,0.0004,14]
[354620123,1740595958460,-151.0,0.0004,14]
[354620124,1740595958469,-151.0,0.0004,14]
[354620125,1740595958479,-206.978381,0.0004,14]
[354620126,1740595958489,-1858.11,0.0004,14]
[354620127,1740595958499,-743.78,0.0004,14]
[354620128,1740595958509,-836.2,0.0004,14]
[354620129,1740595958519,-552.16,0.0004,14]
[354620130,1740595958529,-957.01,0.0004,14]
[354620131,1740595958539,-1949.61,0.0004,14]
[354620132,1740595958548,-161.46388254,0.0004,14]
[354620133,1740595958557,-1008.01,0.0004,14]
[354620134,1740595958567,-1466.22,0.0004,14]
[354620135,1740595958576,-1152.19,0.0004,14]
[354620136,1740595958586,-151.0,0.0004,14]
[354620137,1740595958596,-2482.2,0.0004,14]
[354620138,1740595958606,-151.0,0.0004,14]
[354620139,1740595958615,-151.0,0.0004,14]
[354620140,1740595958624,-1828.52,0.0004,14]
[354620141,1740595958633,-151.0,0.0004,14]
[354620142,1740595958645,-151.0,0.0004,14]
[354620143,1740595958655,-151.0,0.0004,14]
[354620144,1740595958665,-527.63,0.0004,14]
[354620145,1740595958675,-873.77,0.0004,14]
[354620146,1740595958684,-1665.67,0.0004,14]
[354620147,1740595958694,-500.0,0.0004,14]
[354620148,1740595958704,-1934.6,0.0004,14]
[354620149,1740595958713,-786.06,0.0004,14]
[354620150,1740595958722,-1875.12,0.0004,14]
[354620151,1740595958732,-1075.72,0.0004,14]
[354620152,1740595958742,-554.85,0.0004,14]
[354620153,1740595958751,-956.32,0.0004,14]
[354620154,1740595958760,-1163.37,0.0004,14]
[354620155,1740595958769,-500.0,0.0004,14]
[354620156,1740595958779,-1037.67,0.0004,14]
[354620157,1740595958788,-2110.11,0.0004,14]
[354620158,1740595958798,-655.67,0.0004,14]
[354620159,1740595958808,-519.01,0.0004,14]
[354620160,1740595958818,-500.0,0.0004,14]
[354620161,1740595958828,-754.12,0.0004,14]
[354620162,1740595958838,-1351.39,0.0004,14]
[354620163,1740595958848,-1595.01,0.0004,14]
[354620164,1740595958858,-883.23,0.0004,14]
[354620165,1740595958868,-978.64,0.0004,14]
[354620166,1740595958878,-544.48,0.0004,14]
[354620167,1740595958890,-1282.93,0.0004,14]
[354620168,1740595958900,-500.0,0.0004,14]
[354620169,1740595958910,-1979.65,0.0004,14]
[354620170,1740595958920,-500.0,0.0004,14]
[354620171,1740595958930,-1465.82,0.0004,14]
[354620172,1740595958939,-500.0,0.0004,14]
[354620173,1740595958948,-1395.89,0.0004,14]
[354620174,1740595958958,-854.86,0.0004,14]
[354620175,1740595958969,-1505.0,0.0004,14]
[354620176,1740595958979,-924.09,0.0004,14]
[354620177,1740595958988,-711.08,0.0004,14]
[354620178,1740595958998,-552.43,0.0004,14]
[354620179,1740595959011,-895.76,0.0004,14]
[354620180,1740595959021,-932.59,0.0004,14]
[354620181,1740595959032,-1558.86,0.0004,14]
[354620182,1740595959041,-912.19,0.0004,14]
[354620183,1740595959051,-551.46,0.0004,14]
[354620184,1740595959060,-3271.55,0.0004,14]
[354620185,1740595959070,-3117.32,0.0004,14]
[354620186,1740595959080,-896.05,0.0004,14]
[354620187,1740595959089,-1469.5,0.0004,14]
[354620188,1740595959099,-487.83571483,0.0004,14]
[354620189,1740595959108,-1970.34,0.0004,14]
[354620190,1740595959118,-1219.67,0.0004,14]
[354620191,1740595959127,-619.39543046,0.0004,14]
[354620192,1740595959137,-500.0,0.0004,14]
[354620193,1740595959149,-1258.23,0.0004,14]
[354620194,1740595959158,-1003.98,0.0004,14]
[354620195,1740595959167,-802.71,0.0004,14]
[354620196,1740595959177,-1048.22,0.0004,14]
[354620197,1740595959188,-500.0,0.0004,14]
[354620198,1740595959197,-12754.69,0.0004,14]
[354620199,1740595959207,-760.48,0.0004,14]
[354620200,1740595959217,-1559.74,0.0004,14]
[354620201,1740595959226,-1039.17,0.0004,14]
[354620202,1740595959235,-968.47,0.0004,14]
[354620203,1740595959244,-975.3,0.0004,14]
[354620204,1740595959253,-884.61,0.0004,14]
[354620205,1740595959263,-677.65,0.0004,14]
[354620206,1740595959271,-581.51,0.0004,14]
[354620207,1740595959280,-559.35,0.0004,14]
[354620208,1740595959289,-1068.0,0.0004,14]
[354620209,1740595959298,-1472.3,0.0004,14]
[354620210,1740595959307,-1096.63,0.0004,14]
[354620211,1740595959316,-882.85,0.0004,14]
[354620212,1740595959325,-505.62,0.0004,14]
[354620213,1740595959334,-966.9,0.0004,14]
[354620214,1740595959343,-1708.56,0.0004,14]
[354620215,1740595959353,-1141.53,0.0004,7]
[354620216,1740595959362,-1382.5,0.0004,14]
[354620217,1740595959371,-811.04,0.0004,14]
[354620218,1740595959380,-669.94,0.0004,14]
[354620219,1740595959391,-152.057265,0.0004,14]
[354620220,1740595959400,-691.77,0.0004,14]
[354620221,1740595959409,-530.0,0.0004,14]
[354620222,1740595959418,-1910.93,0.0004,14]
[354620223,1740595959427,-500.0,0.0004,14]
[354620224,1740595959437,-874.49,0.0004,14]
[354620225,1740595959446,-776.22,0.0004,14]
[354620226,1740595959456,-2493.41,0.0004,14]
[354620227,1740595959465,-811.0,0.0004,14]
[354620228,1740595959475,-151.0,0.0004,14]
[354620229,1740595959484,-2143.28,0.0004,14]
[354620230,1740595959494,-2617.36,0.0004,14]
[354620231,1740595959503,-1621.78,0.0004,14]
[354620232,1740595959513,-151.0,0.0004,14]
[354620233,1740595959523,-151.0,0.0004,14]
[354620234,1740595959532,-151.0,0.0004,14]
[354620235,1740595959541,-2319.53,0.0004,14]
[354620236,1740595959551,-151.0,0.0004,14]
[354620237,1740595959560,-500.0,0.0004,14]
[354620238,1740595959570,-151.0,0.0004,14]
[354620239,1740595959579,-500.0,0.0004,14]
[354620240,1740595959589,-529.04,0.0004,14]
[354620241,1740595959599,-151.0,0.0004,14]
[354620242,1740595959608,-151.0,0.0004,14]
[354620243,1740595959618,-151.0,0.0004,14]
[354620244,1740595959627,-768.45,0.0004,14]
[354620245,1740595959637,-500.0,0.0004,14]
[354620246,1740595959648,-1163.2,0.0004,14]
[354620247,1740595959658,-309.96269482,0.0004,14]
[354620248,1740595959668,-500.0,0.0004,14]
[354620249,1740595959678,-911.1,0.0004,14]
[354620250,1740595959688,-2143.46,0.0004,14]
[354620251,1740595959697,-1280.98,0.0004,14]
[354620252,1740595959707,-500.0,0.0004,14]
[354620253,1740595959718,-1855.75,0.0004,14]
[354620254,1740595959728,-873.58,0.0004,14]
[354620255,1740595959738,-939.46,0.0004,14]
[354620256,1740595959747,-151.861828,0.0004,14]
[354620257,1740595959757,-500.0,0.0004,14]
[354620258,1740595959767,-151.0,0.0004,14]
[354620259,1740595959776,-151.0,0.0004,14]
[354620260,1740595959786,-300.0,0.0004,2]
[354620261,1740595959795,-151.0,0.0004,14]
[354620262,1740595959805,-151.0,0.0004,14]
[354620263,1740595959814,-151.0,0.0004,14]
[354620264,1740595959823,-151.0,0.0004,14]
[354620265,1740595959833,-151.0,0.0004,14]
[354620266,1740595959842,-151.0,0.0004,14]
[354620267,1740595959853,-1902.32,0.0004,14]
[354620268,1740595959863,-1142.01,0.0004,14]
[354620269,1740595959872,-938.37,0.0004,14]
[354620270,1740595959882,-800.79,0.0004,14]
[354620271,1740595959894,-325.751933,0.0004,14]
[354620272,1740595959904,-512.47,0.0004,14]
[354620273,1740595959913,-2507.28,0.0004,2]
[354620274,1740595959923,-325.751933,0.0004,14]
[354620275,1740595959933,-325.751933,0.0004,14]
[354620276,1740595959943,-325.751933,0.0004,14]
[354620277,1740595959952,-325.751933,0.0004,14]